Cogmind - Beta 13 @@@ ROGUE MODE // 2024.04.10 @ 00:11:20 Player: JackieG Result: Destroyed by 59-7LN(z) with Makeshift Spear Performance ------------- Evolutions (1) 500 Regions Visited (5) 1000 Robots Destroyed (42) 210 Value Destroyed (883) 883 Prototype IDs (5) 100 Alien Tech Used (0) 0 Bonus (633) 633 TOTAL SCORE: 3326 Bonus ------- High Alert Combat Kills 49 Met Imprinter 300 Was Imprinted 300 Friendly Fire -16 Cogmind --------- Core Integrity 0/400 Matter 47/300 Energy 100/100 System Corruption 6% Temperature Warning (345) Movement Core (200) Ox3 Location -7/Zion Parts ------- > --- POWER (1) -------- (None) > --- PROPULSION (2) --- (None) > --- UTILITY (3) ------ Medium Storage Unit > --- WEAPON (3) ------- (None) > --- INVENTORY (10) --- Cooled Ion Engine Cooled Ion Engine Light Treads Light Treads Light Treads Barrage Gun Barrage Gun Phasing Sabre Peak State ------------ > --- POWER ------------ Cooled Ion Engine > --- PROPULSION ------- Light Treads Light Treads > --- UTILITY ---------- Medium Storage Unit Targeting Computer Phasing AFG > --- WEAPON ----------- Improved EM Shotgun Advanced Beam Cannon Light Cannon > --- INVENTORY -------- Cooled Ion Engine Cooled Ion Engine Light Treads Light Treads Improved Heat Sink Advanced Beam Cannon Advanced Beam Cannon Shotgun Grenade Launcher Rocket Launcher [Rating: 29] Favorites ----------- Power Cooled Ion Engine Engine Cooled Ion Engine Propulsion Light Treads Treads Light Treads Leg Aluminum Leg Utility Targeting Computer Device Improved Heat Sink Storage Medium Storage Unit Processor Targeting Computer Hackware Hacking Suite Weapon Advanced Beam Cannon Energy Gun Improved EM Shotgun Energy Cannon Advanced Beam Cannon Ballistic Gun Assault Rifle Ballistic Cannon Light Cannon Launcher Grenade Launcher Slashing Weapon Phasing Sabre Build | -11 -10 -10 -9 -9 -7 ------- Run | Yrd Mat Min Mat Min Zio Slots Evolved 2 | . . . 2 . . Power . | . . . . . . Propulsion . | . . . . . . Utility 1 | . . . 1 . . Weapon 1 | . . . 1 . . Parts Attached 46 | 8 4 1 20 . 13 Power 4 | 1 . . 3 . . Engine 4 | 1 . . 3 . . Core . | . . . . . . Reactor . | . . . . . . Propulsion 11 | 4 2 . 4 . 1 Treads 7 | 2 2 . 2 . 1 Leg 4 | 2 . . 2 . . Wheel . | . . . . . . Hover . | . . . . . . Flight . | . . . . . . Utility 8 | 1 1 . 4 . 2 Device 3 | . . . 1 . 2 Storage 2 | 1 . . 1 . . Processor 2 | . . . 2 . . Hackware 1 | . 1 . . . . Protection . | . . . . . . Artifact . | . . . . . . Weapon 23 | 2 1 1 9 . 10 Energy Gun 3 | . . . 2 . 1 Energy Cannon 6 | . . . 3 . 3 Ballistic Gun 5 | 2 . . 1 . 2 Ballistic Cannon 5 | . 1 . 2 . 2 Launcher 3 | . . 1 1 . 1 Special Weapon . | . . . . . . Impact Weapon . | . . . . . . Slashing Weapon 1 | . . . . . 1 Piercing Weapon . | . . . . . . Special Melee Weapon . | . . . . . . Unidentified Prototypes 5 | . . . 4 . 1 Parts Lost 13 | . . . 4 . 9 Power 1 | . . . . . 1 Propulsion 4 | . . . 2 . 2 Utility 3 | . . . 1 . 2 Weapon 5 | . . . 1 . 4 Highest Loss Streak 9 | . . . 2 . 9 To Critical Strikes . | . . . . . . Average Slot Usage (%) 96 | . 97 100 89 100 99 Engine 11 | . 14 14 11 11 10 Treads 21 | . 17 28 19 22 21 Leg 1 | . 10 . 1 . . Device 6 | . . . . 11 10 Storage 11 | . 14 14 11 11 11 Processor 9 | . . . 12 11 10 Hackware 1 | . 11 14 1 . . Energy Gun 5 | . . . 6 11 6 Energy Cannon 10 | . . . 10 11 11 Ballistic Gun 5 | . 19 14 6 . 2 Ballistic Cannon 9 | . 8 . 7 11 11 Launcher 1 | . . 14 1 . . Naked Turns . | . . . . . . Heaviest Build 34 | 13 15 15 29 29 34 Greatest Support 40 | 40 40 40 40 40 40 Greatest Overweight (x) 1 | 1 . . 1 . . Average Overweight (x) . | . . . . . . Largest Inventory Capacity 10 | 8 8 8 10 10 10 Average Capacity 9 | 7 8 8 8 10 10 Most Carried 10 | 6 8 8 10 10 10 Average Carried 8 | 3 7 7 7 10 9 Final Capacity 10 | 8 8 8 10 10 10 Final Carried 10 | 6 8 8 10 10 8 Class Distribution -------------------- 60% | Scavenger-Gunner 20% | Gunner 16% | Mutant Dominant Class ---------------- Mutant | -10/Materials Mutant | -10/Mines Gunner | -9/Materials Scavenger-Gunner | -9/Mines Scavenger-Gunner | -7/Zion Resources | -11 -10 -10 -9 -9 -7 ----------- Run | Yrd Mat Min Mat Min Zio Matter Collected 858 | 166 35 7 650 . . Remotely . | . . . . . . Salvage Created 1263 | . 40 14 1196 . 13 Parts 82 | . 5 6 70 . 1 Haulers Intercepted 3 | . . . 3 . . Recyclers Shooed 5 | . . . 5 . . Parts Field Recycled . | . . . . . . Retrieved Matter . | . . . . . . Parts Self-Destructed 7 | . . . . . 7 Prevented . | . . . . . . Kills | -11 -10 -10 -9 -9 -7 ------- Run | Yrd Mat Min Mat Min Zio Combat Hostiles Destroyed 27 | . 3 3 21 . . Guns 9 | . 2 . 7 . . Cannons 10 | . 1 . 9 . . AOE 8 | . . 3 5 . . Classes Destroyed 9 | . 2 . 6 . 1 Worker 3 | . . . 3 . . Hauler 3 | . . . 3 . . Recycler 4 | . . . 4 . . Operator 2 | . 1 . 1 . . Watcher 2 | . . . 2 . . Swarmer 10 | . 3 3 4 . . Grunt 12 | . . . 12 . . Sentry 5 | . . . 5 . . Zionite 1 | . . . . . 1 Best Kill Streak 6 | . 3 3 6 . 1 Combat Bots Only 4 | . 3 3 4 . . Max Kills in Single Turn 3 | . 1 3 3 . 1 Gunslinging . | . . . . . . Exploded 3 | . . 3 2 . . Melee . | . . . . . . Uniques/NPCs Destroyed . | . . . . . . Combat | -11 -10 -10 -9 -9 -7 -------- Run | Yrd Mat Min Mat Min Zio Hostile Shots Fired 222 | . 30 3 88 . 101 Missed 52 | . 11 . 23 . 18 Damage Taken 2615 | . 167 35 917 . 1496 Core 466 | . 63 . 90 . 313 Absorbed by Shields . | . . . . . . Regen/Repaired (Parts) 13 | . . . . . 13 Core Remaining (%) 87 | 100 . 74 . . . Volleys Fired 180 | . 10 1 67 . 102 Largest 3 | . 2 2 3 . 3 Hottest 184 | . 55 50 171 . 184 Shots Fired 318 | . 20 2 158 . 138 Gun 87 | . 13 1 73 . . Cannon 219 | . 7 . 80 . 132 Launcher 12 | . . 1 5 . 6 Special . | . . . . . . Kinetic 110 | . 20 1 72 . 17 Thermal 173 | . . . 58 . 115 Explosive 12 | . . 1 5 . 6 Electromagnetic 23 | . . . 23 . . Robot Hit Streak 17 | . 3 1 17 . . Robot Miss Streak 4 | . 4 1 3 . . Penetration Max . | . . . . . . Secondary Targets . | . . . . . . Shots Hit Robots 119 | . 8 1 110 . . Core Hits 59 | . 5 1 50 . 3 Critical Kills . | . . . . . . Critical Parts Destroyed . | . . . . . . Critical Strikes 2 | . . . 2 . . Burn 2 | . . . 2 . . Melee Attacks 37 | . . . . . 37 Impact . | . . . . . . Slashing 37 | . . . . . 37 Piercing . | . . . . . . Sneak Attacks . | . . . . . . Combat Hostiles . | . . . . . . Follow-up Attacks . | . . . . . . Damage Inflicted 2857 | . 121 154 2379 . 203 Guns 832 | . 67 . 765 . . Cannons 1097 | . 54 . 1043 . . Explosions 928 | . . 154 571 . 203 Melee . | . . . . . . Ramming . | . . . . . . Kinetic 782 | . 121 . 661 . . Thermal 968 | . . . 968 . . Explosive 743 | . . 154 386 . 203 Electromagnetic 364 | . . . 364 . . Impact . | . . . . . . Slashing . | . . . . . . Piercing . | . . . . . . Highest Corruption 6 | . . . . . 6 Average Corruption 3 | . . . . . 3 Corruption Purged . | . . . . . . Corruption Blocked . | . . . . . . Effects 1 | . . . . . 1 Message Errors 1 | . . . . . 1 Overload Shots . | . . . . . . Overflow Damage 88 | . . 44 44 . . Projectiles . | . . . . . . Explosions 88 | . . 44 44 . . Melee . | . . . . . . Knockbacks 2 | . 2 . . . . Impact . | . . . . . . Kinetic 2 | . 2 . . . . Secondary . | . . . . . . Self-Inflicted Damage 118 | . . 12 106 . . Shots 6 | . . 1 5 . . Rammed . | . . . . . . Targets Rammed . | . . . . . . Kicked . | . . . . . . Crushed . | . . . . . . Highest Temperature 389 | . . . 380 . 389 Average Temperature 128 | . . . 128 . 128 Received Heat Transfer 825 | . 18 . 327 . 480 Effects 6 | . . . 6 . . Shutdowns 1 | . . . 1 . . Interference 4 | . . . 4 . . Short Circuit 1 | . . . 1 . . Siege Activations . | . . . . . . Robots Corrupted . | . . . . . . Combat Hostiles . | . . . . . . Parts Fried 1 | . . . 1 . . Impact Corruptions . | . . . . . . Robots Melted . | . . . . . . Combat Hostiles . | . . . . . . Parts Melted 4 | . . . 4 . . Heat Transferred 1915 | . . . 1915 . . Parts Sabotaged . | . . . . . . Parts Stolen . | . . . . . . Parts Stripped . | . . . . . . Power Chain Reactions 3 | . . . 3 . . Alert | -11 -10 -10 -9 -9 -7 ------- Run | Yrd Mat Min Mat Min Zio Peak Influence 521 | . 126 121 521 167 . Initial 167 | . . 48 46 167 . Average 234 | . 23 120 348 167 . Maximum Alert Level 2 | . . . 2 . . Low Security (%) 51 | 100 100 100 18 100 . Level 1 20 | . . . 33 . . Level 2 28 | . . . 47 . . Level 3 . | . . . . . . Level 4 . | . . . . . . Level 5 . | . . . . . . High Security . | . . . . . . Max Security . | . . . . . . Squads Dispatched 5 | . 3 . 2 . . Investigation 2 | . 1 . 1 . . Extermination . | . . . . . . Reinforcement 3 | . 2 . 1 . . Assault . | . . . . . . Garrison . | . . . . . . Intercept . | . . . . . . Searches Triggered . | . . . . . . Construction Impeded . | . . . . . . Haulers Reinforced . | . . . . . . Active Scanning Responses . | . . . . . . Cargo Convoy Interrupts . | . . . . . . Stealth | -11 -10 -10 -9 -9 -7 --------- Run | Yrd Mat Min Mat Min Zio Distress Signals 4 | . 1 . 3 . . Communications Jammed . | . . . . . . Distress Signals . | . . . . . . Times Spotted 51 | . 7 3 29 3 9 Peak Tracking Total 7 | . 4 3 5 2 7 Tactical Retreats 1 | . 1 . . . . Traps | -11 -10 -10 -9 -9 -7 ------- Run | Yrd Mat Min Mat Min Zio Traps Triggered 2 | . 1 . 1 . . Indirectly . | . . . . . . Trap Hack Attempts . | . . . . . . Triggered . | . . . . . . Disarmed . | . . . . . . Reprogrammed . | . . . . . . Reused . | . . . . . . Traps Extracted . | . . . . . . Installed . | . . . . . . Triggered . | . . . . . . Machines | -11 -10 -10 -9 -9 -7 ---------- Run | Yrd Mat Min Mat Min Zio Machines Disabled 5 | . . . 4 . 1 Max in Single Turn 1 | . . . 1 . 1 Machines Repaired . | . . . . . . Machines Dismantled . | . . . . . . Machines Sabotaged . | . . . . . . Overloaded Fab Kills . | . . . . . . Hacking | -11 -10 -10 -9 -9 -7 --------- Run | Yrd Mat Min Mat Min Zio Machines Accessed 6 | . 2 . 4 . . Terminals 5 | . 1 . 4 . . Fabricators . | . . . . . . Repair Stations . | . . . . . . Recycling Units 1 | . 1 . . . . Scanalyzers . | . . . . . . Garrison Access . | . . . . . . Total Hacks 18 | . 8 . 10 . . Successful 9 | . 6 . 3 . . Failed 9 | . 2 . 7 . . Catastrophic 1 | . . . 1 . . Database Lockouts . | . . . . . . Manual 4 | . 1 . 2 . 1 Terminals 15 | . 5 . 10 . . Fabricators . | . . . . . . Repair Stations . | . . . . . . Recycling Units 3 | . 3 . . . . Scanalyzers . | . . . . . . Garrison Access . | . . . . . . Terminal Hacks 5 | . 3 . 2 . . Record 3 | . 3 . . . . Branch Access Points 1 | . . . 1 . . Alert Level 1 | . . . 1 . . Fabricator Hacks . | . . . . . . Repair Station Hacks . | . . . . . . Recycling Unit Hacks 2 | . 2 . . . . Report Inventory 1 | . 1 . . . . Retrieve Components 1 | . 1 . . . . Scanalyzer . | . . . . . . Garrison Access Hacks . | . . . . . . Unauthorized Hacks 2 | . 1 . 1 . . Terminals 1 | . . . 1 . . Botnet 1 | . . . 1 . . Fabricators . | . . . . . . Repair Stations . | . . . . . . Recycling Units 1 | . 1 . . . . Recyclers 1 | . 1 . . . . Scanalyzers . | . . . . . . Garrison Access . | . . . . . . Data Cores Recovered . | . . . . . . Used . | . . . . . . Hacking Detections 3 | . 1 . 2 . . Full Trace Events . | . . . . . . Feedback Events . | . . . . . . Feedback Blocked . | . . . . . . Robot Schematics Acquired 3 | . . . . . 3 Robots Built . | . . . . . . Authchips . | . . . . . . Time . | . . . . . . Total Robot Build Rating . | . . . . . . Part Schematics Acquired 14 | . . . . . 14 Parts Built . | . . . . . . Authchips . | . . . . . . Time . | . . . . . . Total Part Build Rating . | . . . . . . Parts Repaired . | . . . . . . Time . | . . . . . . Parts Recycled . | . . . . . . Recycled Matter . | . . . . . . Retrieved Matter . | . . . . . . Retrieved Components . | . . . . . . Parts Scanalyzed . | . . . . . . Part Schematics Acquired . | . . . . . . Parts Damaged . | . . . . . . Bothacking | -11 -10 -10 -9 -9 -7 ------------ Run | Yrd Mat Min Mat Min Zio Used RIF Installer . | . . . . . . Robots Hacked . | . . . . . . Non-combat . | . . . . . . Combat . | . . . . . . Robot Hacks Applied . | . . . . . . Relay Couplers Released . | . . . . . . Fabnet Peak Effective % . | . . . . . . Robots Rewired . | . . . . . . Allies Hacked . | . . . . . . Hacks Repelled . | . . . . . . Allies | -11 -10 -10 -9 -9 -7 -------- Run | Yrd Mat Min Mat Min Zio Total Allies 4 | . . . . . 4 Largest Group 4 | . . . . . 4 Highest-Rated Group 155 | . . . . . 155 Highest-Rated Ally 42 | . . . . . 42 Total Orders . | . . . . . . Ally Attacks . | . . . . . . Total Damage . | . . . . . . Kills . | . . . . . . Allies Corrupted . | . . . . . . Allies Melted . | . . . . . . Intel | -11 -10 -10 -9 -9 -7 ------- Run | Yrd Mat Min Mat Min Zio Robot Analysis Total . | . . . . . . Derelict Logs Recovered 3 | . . 1 . . 2 Drone Launches . | . . . . . . Drone Recoveries . | . . . . . . Exploration | -11 -10 -10 -9 -9 -7 ------------- Run | Yrd Mat Min Mat Min Zio Turns Passed 3763 | 108 250 206 909 36 2254 Spaces Moved 1874 | 67 123 126 378 23 1157 Core 15 | 15 . . . . . Treads 1793 | 45 83 126 359 23 1157 Legs 66 | 7 40 . 19 . . Wheels . | . . . . . . Hover . | . . . . . . Flight . | . . . . . . Fastest Speed 50 | 50 120 160 120 160 160 Average Speed 158 | 135 146 160 159 160 160 Slowest Speed 190 | 160 160 160 190 160 160 Overloaded Moves . | . . . . . . Propulsion Burnouts . | . . . . . . Robots Hopped . | . . . . . . Cave-ins Triggered . | . . . . . . Exploration Rate (%) 32 | 4 26 33 43 7 80 Regions Visited 5 Branch Regions 3 Pre-discovered Areas 1 | . . . . . 1 Known Exits Taken 1 | . . . 1 . . Unknown Exits Taken 4 | 1 1 1 . 1 . Scrap Searched . | . . . . . . Spaces Dug 9 | . . . . . 9 Terrain Destroyed 43 | . . 3 30 . 10 Melee . | . . . . . . Projectile . | . . . . . . AOE 43 | . . 3 30 . 10 Terrain Rammed . | . . . . . . Walls Destroyed . | . . . . . . Machines Disabled . | . . . . . . Actions | -11 -10 -10 -9 -9 -7 --------- Run | Yrd Mat Min Mat Min Zio Total 2334 | 80 173 129 562 22 1368 Wait 123 | . 26 . 60 . 37 Move 1869 | 66 122 125 377 22 1157 Hop . | . . . . . . Pick Up 43 | 6 7 1 20 . 9 Fast Attach 15 | 6 . . 7 . 2 Attach 8 | . 1 . 4 . 3 Detach . | . . . . . . Swap 23 | 2 3 1 9 . 8 Drop 35 | . 4 1 18 . 12 Fire 180 | . 10 1 67 . 102 Melee 37 | . . . . . 37 Ram . | . . . . . . Kick . | . . . . . . Crush . | . . . . . . Escape Stasis . | . . . . . . Rewire 1 | . . . . . 1 Trap . | . . . . . . Miscellaneous . | . . . . . . Route ------- -11/Scrapyard -10/Materials -10/Mines -9/Materials -9/Mines (discovered 2 exits: [*Mat] / *Zio) -7/Zion History --------- Turn | Location | Event 23 | -11/Scrapyard | Discovered new exit (range 15) 109 | -11/Scrapyard | Entered Materials 297 | -10/Materials | Discovered new exit (range 13) 308 | -10/Materials | Build established: Mutant 359 | -10/Materials | Entered Mines 413 | -10/Mines | Received a Rocket Launcher from a helpful Derelict 524 | -10/Mines | Discovered new exit (range 16) 535 | -10/Mines | Learned Materials interactive machine intel 565 | -10/Mines | Entered Materials 565 | -9/Materials | Evolved 2 slots: Utility x1, Weapon x1 566 | -9/Materials | Loaded intel: 18 interactive machine locations 998 | -9/Materials | Build established: Gunner 1178 | -9/Materials | Identified exit to Mines 1474 | -9/Materials | Entered Mines 1475 | -9/Mines | Assembled infested the area 1503 | -9/Mines | Discovered new exit (range 8) 1504 | -9/Mines | A Derelict revealed a hidden shortcut to a safe place 1510 | -9/Mines | Entered Zion 1547 | -7/Zion | Acquired unknown access codes intercepted by a Zionite 1618 | -7/Zion | Learned Factory stockpile data 1685 | -7/Zion | Build established: Scavenger-Gunner 1720 | -7/Zion | Found Prototype Device 2035 | -7/Zion | Learned location of Recycling (-7) 2068 | -7/Zion | Given A8's code to call for help 2118 | -7/Zion | Learned Factory emergency access door positions 2305 | -7/Zion | Imprinted 2308 | -7/Zion | Declared Zion's savior 2542 | -7/Zion | Found Prototype Device 2543 | -7/Zion | Identified Phasing AFG 3736 | -7/Zion | Attacked by Zionites 3755 | -7/Zion | Core integrity fell below 50% 3763 | -7/Zion | Core integrity fell below 20% 3764 | -7/Zion | Destroyed by 59-7LN(z) with Makeshift Spear Last Messages --------------- Rocket Launcher destroyed. Critical hit (Burn: +80). Adv. Beam Cannon severed. YY-5X1(z) bursts out of the Twisted Machinery. Slug penetrates Sealed Blast Doors. Lgt. Treads destroyed. Slug Cannon destroyed. Cld. Ion Engine destroyed. Lgt. Treads destroyed. KP-IG9(M) shuts down. Targeting Computer destroyed. System corrupted by crushing effect (+4). Attempting to rewire KP-IG9(M). 59-7LN(z) bursts out of the Twisted Machinery. Knocked back. 59-7LN(z) pulls a Mak. Spear out of the Twisted Machinery. Slug Cannon destroyed. Critical hit (Burn: +80). Adv. Beam Cannon destroyed. Map ----- +----------------------------------------------------+ | ?????????????????????????????????????????????????? | | ?????????????????????????????????????????????????? | | ?????????????????????????????????????????????????? | | ???????????????????????????????????????????????### | | ????????????????????????????????#####??????????#"" | | ??????????????????????????????##" ""#??????????#"" | | ??????????????????????????????# " ""##?????????#" | | ??????????????????????????????#! "#???###????# | | ??????????????????????????????#"" ""#??""#""???# | | ?????????????????????????????### ####?"""""##?##" | | ?????????????????????????????#"" #?"" """### | | ?????????????????????????????#""" ###" """"# " | | ?????????????????????????????#"" " ##"" ""##""" | | ?????????????????????????????#"" " " """""" | | ????????????????????????????#"#" ""# ""#"" | | ????????????????????????????##""" "" ""#"" | | ?????????????????????????????##"" """ ""#" | | ??????????????????????????????#"" "#"" | | ???????????????????#??????????#"" "##" | | ???????????????????"##???????##"" "#"#"""" | | ???????????????????#"####???##""" """"""""" | | ???????????????????#""""##?##""" """"" | | ???????????????????" ""###"" """" | | ???????????????????# " "#"" "" | | ??????????????????## %"""z" "" """" "" | | ??????????????????" ! M@M """""""" "" | | ??????????????????" MzMM """""""" " | | ????????????####### z"" "" | | ????????????# ""#" | | ????????????#### ##"" "" | | ???????????????# ## ?##"" """ | | ???????????????##??###???#"" """ """" """" | | ?????????????????????????#"" """z ""#" #"""" | | ????????????????????????##"" """""#"" #"##" | | ????????????????????????#"" ""###""" """"" | | ????????????????????????#""""" " """""""" """"" | | ????????????????????????#"#"#" """""""""" """" | | ?????????????????????####"#""" """"" "" """ | | ?????????????????????#"#"#"" "" " | | ?????????????????????#""""" " | | ?????????????????????#"" " | | ?????????????????????#""" ""??? | | ?????????????????????##"" ""??? | | ?????????????????????##"" "" " """ " ?? | | ?????????????###??####""" """ " """ "" "? | | ?????????????#""###"""""" """ " "" "" " "? | | ??#############"""""""""" "" " "" "???? | | ??""""""""" #"#" """ "" " "" """ #""?? | | ?"""""""""" #""" " """"""" """#? | | ?"" #""" " " """"""" ""## | +----------------------------------------------------+ Best States ------------- Heat Dissipation 42 Energy Generation 14 Energy Capacity 280 Matter Stores 300 Matter Capacity 300 Sight Range 16 Terrain Scan Density 10 Evasion (%) 55 Targeting Accuracy 6 Recoil Reduction 2 Offensive Hacking 10 Item Schematics ----------------- Imp. Recalibrator | -7/Zion | Archive Hrd. Heavy Armor Plating | -7/Zion | Archive Phase Cannon | -7/Zion | Archive Power Maul | -7/Zion | Archive Power Amplifier | -7/Zion | Archive Imp. Melee Analysis Suite | -7/Zion | Archive Hvy. Pick | -7/Zion | Archive Imp. Deuterium Engine | -7/Zion | Archive Mak. Light Armor Plating | -7/Zion | Archive Wave Gun | -7/Zion | Archive Adv. Terrain Scanner | -7/Zion | Archive Imp. Salvage Targeting Computer | -7/Zion | Archive Mak. Leg | -7/Zion | Archive 0b10 Decoder Chip [Skirmisher] | -7/Zion | Archive Robot Schematics ------------------ T-07 Excavator | -7/Zion | Archive L-41 Fighter | -7/Zion | Archive B-36 Bruiser | -7/Zion | Archive Fabricated ------------ Nothing Alien Tech Used ----------------- None Achievements -------------- Hey, That's Mine! I Survived The Infestation Challenges ------------ None Game ------ Seed GunRagnarokWings Manual? 0 Play Time 00:48:46 Cumulative 18.2 hours Start 2024.04.09 @ 23:19:37 End 2024.04.10 @ 00:11:20 Sessions 1 Manual Loads 0 Difficulty Rogue Special Mode None Game No. 20 Rogue 17 Adventurer 3 Explorer 0 Win Type - Total 0 Types 0/0/0/0/0/0/0/0/0 Lore% 22 Gallery% 23 Achievement% 20 Wizard Run 0 Options --------- Layout 1 ASCII 0 Keyboard 0 Movement Mouse Keybinds 0 Fullscreen 1 Font 24/Smallcaps Map View 50x35 Zoom Use 0% Tactical HUD 0 Map Filters NONE Filters NONE Steam 1 RUN: 76d2aac9-9b41-4b1b-8ab4-d3a855265808